bitfinex-derivatives/quotes_BTCF0:USTF0_20250108
["timestamp","ask_amount","ask_price","bid_price","bid_amount"]
[1736311739988,0.09557502,96413.0,96412.0,0.051863]
[1736311740182,0.09557502,96413.0,96412.0,0.412663]
[1736311740383,0.3608,96425.0,96403.0,0.51596117]
[1736311740584,0.3608,96425.0,96415.0,0.15516117]
[1736311740891,0.3608,96425.0,96423.0,0.051857]
[1736311741780,0.3608,96435.0,96424.0,0.3608]
[1736311741979,0.3608,96435.0,96434.0,0.051851]
[1736311742692,0.00056001,96447.0,96445.0,0.051845]
[1736311742986,0.00056001,96447.0,96433.0,0.3608]
[1736311742987,0.13302804,96463.0,96462.0,0.051836]
[1736311743281,0.00060001,96464.0,96462.0,0.051836]
[1736311743586,0.3608,96468.0,96467.0,0.051833]
[1736311744185,0.50056001,96471.0,96465.0,0.3608]
[1736311744379,0.367,96476.0,96475.0,0.051829]
[1736311745283,0.367,96476.0,96466.0,0.15516117]
[1736311745485,0.001,96471.0,96466.0,0.15516117]
[1736311746190,0.001,96471.0,96465.0,0.413634]
[1736311746191,0.5,96466.0,96465.0,0.001]
[1736311746393,0.8608,96466.0,96465.0,0.001]
[1736311746884,0.8608,96466.0,96455.0,0.05184]
[1736311746885,0.3608,96466.0,96455.0,0.05184]
[1736311747088,0.3608,96466.0,96454.0,0.05107544]
[1736311747388,0.3608,96466.0,96450.0,0.15671601]
[1736311747688,0.3608,96456.0,96455.0,0.05184]
[1736311748087,0.8608,96456.0,96455.0,0.05184]
[1736311748281,0.3608,96456.0,96455.0,0.05184]
[1736311748482,0.00060001,96459.0,96450.0,0.05277558]
[1736311748677,0.58836001,96465.0,96461.0,0.051836]
[1736311748880,0.5878,96465.0,96463.0,0.051835]
[1736311750990,0.5888,96465.0,96463.0,0.051835]
[1736311751179,0.5888,96465.0,96463.0,0.058835]
[1736311752593,0.5888,96465.0,96463.0,0.11051769]
[1736311753289,0.001,96465.0,96463.0,0.11051769]
[1736311754681,0.2208,96484.0,96483.0,0.051825]
[1736311755998,0.5816,96485.0,96483.0,0.051825]
[1736311757197,0.2228,96485.0,96483.0,0.051825]
[1736311757794,0.2248,96485.0,96483.0,0.051825]
[1736311758098,0.2248,96485.0,96483.0,0.10270419]
[1736311758300,0.3608,96484.0,96483.0,0.05987919]
[1736311758598,0.5,96475.0,96462.0,0.051836]
[1736311758899,0.3608,96467.0,96462.0,0.051836]
[1736311759197,0.5,96465.0,96463.0,0.051835]
[1736311759397,1.0878,96465.0,96456.0,0.05112308]
[1736311759597,0.3608,96458.0,96454.0,0.05184]
[1736311760290,0.3608,96458.0,96454.0,0.10265173]
[1736311760494,0.3608,96458.0,96456.0,0.009]
[1736311760691,0.3608,96458.0,96456.0,0.060839]
[1736311761104,0.3608,96458.0,96456.0,0.051839]
[1736311761301,0.3618,96458.0,96456.0,0.051839]
[1736311762501,0.3618,96458.0,96454.0,0.06881173]
[1736311762702,1.0853,96455.0,96454.0,0.05081173]
[1736311762896,1.0853,96455.0,96450.0,0.00155484]
[1736311763103,0.5878,96455.0,96452.0,0.051841]
[1736311763401,0.5878,96455.0,96453.0,0.05184]
[1736311763604,0.5878,96455.0,96454.0,0.009]
[1736311763787,0.5888,96455.0,96454.0,0.018]
[1736311764394,0.5888,96455.0,96453.0,0.05184]
[1736311765209,0.001,96455.0,96453.0,0.05184]
[1736311765397,0.3608,96467.0,96465.0,0.051834]
[1736311765592,0.3608,96467.0,96453.0,0.05184]
[1736311765593,0.5878,96476.0,96457.0,0.15516117]
[1736311765897,0.5878,96476.0,96475.0,0.051829]
[1736311766101,0.2208,96476.0,96475.0,0.051829]
[1736311766892,0.31630395,96476.0,96475.0,0.0955508]
[1736311767806,0.31730395,96476.0,96475.0,0.1135508]
[1736311768410,0.81730395,96476.0,96475.0,0.0617218]
[1736311769104,0.31730395,96476.0,96475.0,0.1135508]
[1736311774514,0.28230395,96476.0,96475.0,0.1135508]
[1736311775105,0.1868,96476.0,96475.0,0.1135508]
[1736311775511,0.33626782,96493.0,96475.0,0.1135508]
[1736311775817,0.25736267,96493.0,96492.0,0.05182]
[1736311776107,0.11157877,96498.0,96485.0,0.3608]
[1736311776108,0.09548431,96498.0,96485.0,0.3608]
[1736311776311,0.09548431,96498.0,96497.0,0.051817]
[1736311777012,0.09548431,96498.0,96490.0,0.051821]
[1736311777407,0.3608,96491.0,96485.0,0.04601441]
[1736311777603,0.1276,96490.0,96485.0,0.002]
[1736311777805,0.6276,96490.0,96485.0,0.002]
[1736311778011,0.1279,96489.0,96485.0,0.002]
[1736311779118,0.22338431,96489.0,96481.0,0.051825]
[1736311779505,0.5,96487.0,96481.0,0.09451884]
[1736311779904,0.5,96487.0,96485.0,0.009]
[1736311780108,0.09548431,96486.0,96474.0,0.051829]
[1736311780304,0.09548431,96486.0,96482.0,0.051825]
[1736311780506,0.09548431,96486.0,96478.0,0.051827]
[1736311780712,0.5,96476.0,96462.0,0.516876]
[1736311780907,0.3608,96470.0,96462.0,0.50867959]
[1736311781112,0.3608,96470.0,96464.0,0.051835]
[1736311782414,0.09548431,96469.0,96464.0,0.051835]
[1736311782608,0.4715262,96469.0,96462.0,0.50919959]
[1736311782813,0.5,96467.0,96462.0,0.50867959]
[1736311783023,0.5,96467.0,96462.0,0.51767959]
[1736311783208,0.5,96467.0,96464.0,0.009]
[1736311783404,0.5,96465.0,96464.0,0.018]
[1736311783815,0.5,96465.0,96464.0,0.009]
[1736311784015,0.5,96465.0,96462.0,0.009]
[1736311784210,0.09548431,96466.0,96455.0,0.00155469]
[1736311784406,0.3608,96456.0,96455.0,0.00155469]
[1736311784819,0.8608,96456.0,96455.0,0.00155469]
[1736311785114,0.3608,96456.0,96455.0,0.00155469]
[1736311785510,0.45628431,96456.0,96455.0,0.00155469]
[1736311785705,0.8323262,96456.0,96447.0,0.12434208]
[1736311785920,0.3608,96448.0,96447.0,0.12434208]
[1736311786422,0.3608,96448.0,96440.0,0.051848]
[1736311786919,0.1273,96447.0,96440.0,0.051848]
[1736311787822,0.1273,96447.0,96442.0,0.051847]
[1736311788013,0.22278431,96447.0,96442.0,0.051847]
[1736311788815,0.09548431,96447.0,96440.0,0.03986872]
[1736311789020,0.09548431,96447.0,96445.0,0.051845]
[1736311789214,0.09648431,96447.0,96445.0,0.051845]
[1736311790226,0.09648431,96447.0,96445.0,0.053845]
[1736311790424,0.09748431,96447.0,96445.0,0.053845]
[1736311792426,0.09748431,96447.0,96445.0,0.055845]
[1736311799432,0.002,96447.0,96445.0,0.055845]
[1736311799739,0.3608,96446.0,96445.0,0.055845]
[1736311800644,0.45628431,96446.0,96445.0,0.055845]
[1736311800844,0.45628431,96446.0,96445.0,0.053845]
[1736311801037,0.45828431,96446.0,96445.0,0.062845]
[1736311801738,0.09748431,96446.0,96445.0,0.062845]
[1736311802038,0.1385262,96446.0,96445.0,0.062845]
[1736311802640,0.04304189,96446.0,96445.0,0.062845]
[1736311803131,0.01010861,96448.0,96447.0,0.051844]
[1736311803533,0.05650665,96453.0,96452.0,0.051841]
[1736311803734,0.2208,96465.0,96463.0,0.051835]
[1736311803931,0.2208,96465.0,96464.0,0.3608]
[1736311805348,0.2218,96465.0,96464.0,0.3678]
[1736311805942,0.2218,96465.0,96464.0,0.04460748]
[1736311806337,0.2228,96465.0,96464.0,0.04760748]
[1736311807150,0.2228,96465.0,96464.0,0.01]
[1736311807942,0.5167,96465.0,96464.0,0.01]
[1736311808543,0.62832033,96465.0,96464.0,0.01]
[1736311810642,0.5167,96465.0,96464.0,0.01]
[1736311813151,0.5167,96465.0,96464.0,0.061835]
[1736311813854,0.2228,96465.0,96464.0,0.061835]
[1736311814557,0.2228,96465.0,96464.0,0.01]
[1736311815450,0.3558,96465.0,96464.0,0.01]
[1736311816261,0.5001,96465.0,96464.0,0.01]
[1736311816463,1.0001,96465.0,96464.0,0.01]
[1736311817564,1.294,96465.0,96464.0,0.01]
[1736311817762,1.294,96465.0,96449.0,0.051843]
[1736311817964,0.3608,96450.0,96449.0,0.051843]
[1736311818464,0.3608,96450.0,96449.0,0.08844073]
[1736311819053,0.3608,96450.0,96449.0,0.09144073]
[1736311819457,0.3608,96450.0,96449.0,0.09644073]
[1736311819672,0.001,96450.0,96449.0,0.09644073]
[1736311820157,0.11162033,96464.0,96459.0,0.051837]
[1736311821156,0.51526001,96465.0,96459.0,0.051837]
[1736311821157,0.3608,96460.0,96459.0,0.051837]
[1736311822351,0.3608,96460.0,96459.0,0.056837]
[1736311822564,0.3618,96460.0,96459.0,0.056837]
[1736311822866,0.5826,96460.0,96459.0,0.056837]
[1736311823061,0.5826,96460.0,96459.0,0.051837]
[1736311823368,0.5836,96460.0,96459.0,0.005]
[1736311824658,0.5836,96460.0,96459.0,0.04279582]
[1736311825058,0.5826,96460.0,96459.0,0.04279582]
[1736311825257,0.5836,96460.0,96459.0,0.04479582]
[1736311825457,0.5826,96460.0,96459.0,0.03979582]
[1736311825657,0.5836,96460.0,96459.0,0.04479582]
[1736311830369,0.69522033,96460.0,96459.0,0.04479582]
[1736311831269,0.5836,96460.0,96459.0,0.04479582]
[1736311834274,0.5836,96460.0,96459.0,0.007]
[1736311834568,1.2736,96460.0,96459.0,0.007]
[1736311834766,1.5675,96460.0,96459.0,0.007]
[1736311835762,0.5147,96459.0,96449.0,0.03130561]
[1736311836074,0.5,96449.0,96440.0,0.03125815]
[1736311836262,0.5,96449.0,96430.0,0.10331637]
[1736311836263,0.3608,96441.0,96438.0,0.07401256]
[1736311836463,0.5147,96439.0,96438.0,0.07401256]
[1736311836862,0.67030255,96439.0,96438.0,0.07401256]
[1736311837865,0.78292288,96439.0,96438.0,0.07901256]
[1736311838267,0.78292288,96439.0,96438.0,0.0593325]
[1736311838470,0.78392288,96439.0,96438.0,0.0593325]
[1736311839376,0.78392288,96439.0,96438.0,0.0543325]
[1736311841172,0.67230255,96439.0,96438.0,0.0543325]
[1736311842668,0.67230255,96439.0,96438.0,0.03216894]
[1736311842874,0.67230255,96439.0,96420.0,0.10331637]
[1736311843074,0.3608,96431.0,96425.0,0.051855]
[1736311843469,0.5147,96428.0,96415.0,0.3608]
[1736311843671,0.1558201,96430.0,96413.0,0.00052]
[1736311843672,0.2208,96420.0,96413.0,0.00052]
[1736311843876,0.2208,96420.0,96405.0,0.3608]
[1736311843877,0.2208,96420.0,96409.0,0.051864]
[1736311844173,0.15454357,96419.0,96409.0,0.051864]
[1736311844665,0.15454357,96419.0,96409.0,0.15518037]
[1736311844870,0.15454357,96419.0,96418.0,0.001]
[1736311845471,0.15554357,96419.0,96418.0,0.001]
[1736311846572,0.15654357,96419.0,96418.0,0.001]
[1736311846773,0.67124357,96419.0,96418.0,0.001]
[1736311847168,1.03204357,96419.0,96418.0,0.001]
[1736311847476,1.53204357,96419.0,96418.0,0.001]
[1736311849280,1.6436639,96419.0,96418.0,0.001]
[1736311850876,1.1436639,96419.0,96418.0,0.001]
[1736311851379,0.7828639,96419.0,96418.0,0.001]
[1736311852169,0.67124357,96419.0,96418.0,0.001]
[1736311852783,0.37734357,96419.0,96418.0,0.001]
[1736311853183,0.2108,96419.0,96418.0,0.2141]
[1736311853369,0.15647017,96419.0,96418.0,0.2141]
[1736311853683,0.15647017,96430.0,96418.0,0.2141]
[1736311853879,0.15647017,96430.0,96429.0,0.051854]
[1736311854080,0.2208,96434.0,96431.0,0.051852]
[1736311854382,0.1549353,96433.0,96431.0,0.051852]
[1736311855676,0.1559353,96433.0,96431.0,0.051852]
[1736311856783,0.1569353,96433.0,96431.0,0.053852]
[1736311857882,0.1569353,96433.0,96431.0,0.0807113]
[1736311858286,0.3608,96432.0,96431.0,0.0807113]
[1736311858782,0.51703337,96432.0,96431.0,0.0807113]
[1736311859084,0.15623337,96432.0,96431.0,0.0807113]
[1736311859476,0.51803337,96432.0,96431.0,0.0797113]
[1736311859984,0.13833538,96432.0,96431.0,0.0797113]
[1736311860179,0.13933538,96432.0,96431.0,0.0807113]
[1736311860375,0.33242033,96448.0,96431.0,0.0807113]
[1736311860686,0.04528781,96448.0,96447.0,0.412644]
[1736311860979,0.3608,96462.0,96461.0,0.051837]
[1736311861196,0.3608,96462.0,96453.0,0.05184]
[1736311861485,0.36427487,96461.0,96453.0,0.05184]
[1736311861686,0.86427487,96461.0,96453.0,0.05184]
[1736311861892,0.5,96460.0,96453.0,0.05184]
[1736311862075,0.5,96460.0,96441.0,0.00155519]
[1736311862076,0.5,96452.0,96444.0,0.051845]
[1736311862283,0.3608,96445.0,96444.0,0.051845]
[1736311862581,0.51724134,96445.0,96444.0,0.051845]
[1736311863484,0.51824134,96445.0,96444.0,0.053845]
[1736311863986,0.15844134,96445.0,96444.0,0.062845]
[1736311864482,0.15744134,96445.0,96444.0,0.053845]
[1736311864682,0.15844134,96445.0,96444.0,0.062845]
[1736311864886,0.15744134,96445.0,96444.0,0.060845]
[1736311865089,0.15844134,96445.0,96444.0,0.067845]
[1736311865274,0.13768134,96445.0,96444.0,0.067845]
[1736311865682,0.13668134,96445.0,96444.0,0.060845]
[1736311865880,0.13768134,96445.0,96444.0,0.068845]
[1736311866075,0.13768134,96445.0,96444.0,0.059845]
[1736311866281,0.13768134,96445.0,96444.0,0.068845]
[1736311866682,0.13668134,96445.0,96444.0,0.059845]
[1736311866988,0.13668134,96445.0,96444.0,0.068845]
[1736311866989,0.13768134,96445.0,96444.0,0.068845]
[1736311867688,0.10676865,96445.0,96444.0,0.068845]
[1736311870286,0.07276865,96445.0,96444.0,0.068845]
[1736311879387,0.07276865,96445.0,96441.0,0.02721816]
[1736311879696,0.5,96435.0,96427.0,0.46564]
[1736311879897,0.55940737,96444.0,96422.0,0.051857]
[1736311879898,0.3608,96428.0,96422.0,0.051857]
[1736311880085,0.3608,96428.0,96411.0,0.3608]
[1736311880086,0.3608,96428.0,96423.0,0.051857]
[1736311880396,0.14030737,96426.0,96420.0,0.13101949]
[1736311880593,0.14030737,96426.0,96411.0,0.3608]
[1736311880594,0.5,96418.0,96410.0,0.10331637]
[1736311880891,0.3608,96411.0,96410.0,0.10331637]
[1736311881283,0.51898194,96411.0,96408.0,0.051865]
[1736311881895,0.51898194,96411.0,96410.0,0.009]
[1736311882096,0.51898194,96411.0,96410.0,0.060864]
[1736311882303,0.51596967,96411.0,96410.0,0.060864]
[1736311882599,0.15516967,96411.0,96410.0,0.060864]
[1736311882991,0.15500459,96415.0,96410.0,0.009]
[1736311883199,0.156386,96411.0,96410.0,0.060864]
[1736311883395,0.157386,96411.0,96410.0,0.051864]
[1736311883593,0.00315165,96411.0,96410.0,0.051864]
[1736311883796,0.15953765,96411.0,96410.0,0.051864]
[1736311884292,0.15853765,96411.0,96410.0,0.051864]
[1736311884798,0.156386,96411.0,96410.0,0.051864]
[1736311884996,0.157386,96411.0,96410.0,0.051864]
[1736311885900,0.1634042,96411.0,96410.0,0.051864]
[1736311887102,0.1634042,96411.0,96402.0,0.02939831]
[1736311887103,0.5242042,96411.0,96402.0,0.02939831]
[1736311887288,0.3608,96403.0,96402.0,0.02939831]
[1736311887793,0.52390163,96403.0,96402.0,0.02939831]
[1736311888503,0.52390163,96403.0,96402.0,0.03039831]
[1736311888805,0.52490163,96403.0,96402.0,0.03039831]
[1736311889595,0.52590163,96403.0,96402.0,0.001]
[1736311889789,0.666209,96403.0,96391.0,0.03410031]
[1736311889994,0.3608,96392.0,96371.0,0.001556]
[1736311890195,0.3608,96378.0,96371.0,0.001556]
[1736311890405,0.34004,96378.0,96371.0,0.001556]
[1736311890605,0.16514655,96377.0,96371.0,0.001556]
[1736311890899,0.16514655,96377.0,96371.0,0.053441]
[1736311891100,0.16514655,96377.0,96371.0,0.08846627]
[1736311891299,0.09561181,96376.0,96371.0,0.08846627]
[1736311891699,0.18401126,96375.0,96371.0,0.08846627]
[1736311892291,0.09561181,96374.0,96372.0,0.051884]
[1736311892797,0.15638592,96373.0,96372.0,0.051884]
[1736311892995,0.19469215,96373.0,96371.0,0.03758127]
[1736311893200,0.2131,96372.0,96371.0,0.03758127]
[1736311893403,0.2131,96372.0,96371.0,0.03658127]
[1736311893600,0.37021978,96372.0,96371.0,0.03658127]
[1736311893902,0.73101978,96372.0,96371.0,0.03658127]
[1736311894305,0.82763159,96372.0,96371.0,0.03658127]
[1736311894699,0.82863159,96372.0,96371.0,0.03658127]
[1736311896012,0.82863159,96372.0,96366.0,0.4658]
[1736311896013,0.82863159,96372.0,96366.0,0.00052]
[1736311896207,0.5,96370.0,96360.0,0.3608]
[1736311896507,0.5,96370.0,96360.0,0.46411637]
[1736311896700,0.19869541,96369.0,96360.0,0.46411637]
[1736311897207,0.3608,96362.0,96360.0,0.10331637]
[1736311897400,0.3608,96362.0,96360.0,0.03384966]
[1736311897601,0.15649475,96361.0,96359.0,0.051891]
[1736311898714,0.14030737,96359.0,96350.0,0.10331637]
[1736311898907,0.3608,96351.0,96350.0,0.10331637]
[1736311899205,0.52010414,96351.0,96350.0,0.10331637]
[1736311899509,0.52010414,96351.0,96349.0,0.03399701]
[1736311899700,0.52010414,96351.0,96345.0,0.051899]
[1736311899897,0.52010414,96351.0,96350.0,0.001]
[1736311900099,0.52110414,96351.0,96350.0,0.001]
[1736311900702,0.66141151,96351.0,96345.0,0.03604903]
[1736311901006,0.5,96350.0,96345.0,0.001]
[1736311901507,0.21294731,96349.0,96345.0,0.001]
[1736311902012,0.7072,96348.0,96345.0,0.001]
[1736311902307,0.7072,96348.0,96341.0,0.03457613]
[1736311902308,0.00129272,96347.0,96341.0,0.03457613]
[1736311902515,0.3608,96343.0,96340.0,0.10331637]
[1736311902701,0.3608,96343.0,96340.0,0.03491539]
[1736311902897,0.3608,96343.0,96333.0,0.46411637]
[1736311902898,0.21967295,96342.0,96333.0,0.46411637]
[1736311903106,0.21967295,96342.0,96333.0,0.10331637]
[1736311904003,0.21967295,96342.0,96334.0,0.05346165]
[1736311904302,0.22067295,96342.0,96334.0,0.05446165]
[1736311904507,0.22067295,96342.0,96334.0,0.08832908]
[1736311904708,0.4021,96341.0,96334.0,0.08832908]
[1736311905106,0.16130875,96340.0,96334.0,0.08832908]
[1736311905502,0.16130875,96340.0,96334.0,0.03642408]
[1736311905810,0.16130875,96340.0,96338.0,0.051903]
[1736311906222,0.16230875,96340.0,96338.0,0.051903]
[1736311906711,0.15856824,96340.0,96338.0,0.051903]
[1736311907211,0.15756824,96340.0,96338.0,0.052903]
[1736311907413,0.15856824,96340.0,96338.0,0.052903]
[1736311907813,0.15856824,96340.0,96338.0,0.001]
[1736311908814,0.06760243,96339.0,96338.0,0.001]
[1736311909208,0.22383013,96339.0,96338.0,0.001]
[1736311909410,0.5,96329.0,96320.0,0.10331637]
[1736311909612,0.3608,96324.0,96322.0,0.03505309]
[1736311909921,0.3608,96324.0,96314.0,0.051916]
[1736311910111,0.15881435,96323.0,96314.0,0.051916]
[1736311910310,0.15881435,96323.0,96313.0,0.46604]
[1736311910708,0.15881435,96323.0,96318.0,0.051913]
[1736311910908,0.15881435,96323.0,96313.0,0.50008521]
[1736311911216,0.15881435,96323.0,96319.0,0.051913]
[1736311911419,0.09565222,96322.0,96319.0,0.051913]
[1736311911813,0.2374607,96321.0,96319.0,0.051913]
[1736311912516,0.15649565,96321.0,96319.0,0.051913]
[1736311912822,0.001,96322.0,96321.0,0.051912]
[1736311913019,0.001,96322.0,96321.0,0.412712]
[1736311913219,0.15624136,96322.0,96321.0,0.412712]
[1736311914316,0.15524136,96322.0,96321.0,0.412712]
[1736311914616,0.15622675,96336.0,96321.0,0.3608]
[1736311914920,0.23244965,96336.0,96329.0,0.051908]
[1736311915520,0.23244965,96336.0,96330.0,0.051907]
[1736311915719,0.23244965,96336.0,96331.0,0.051906]
[1736311916424,0.09564376,96335.0,96331.0,0.051906]
[1736311916721,0.09564376,96335.0,96326.0,0.10331637]
[1736311916918,0.15539327,96334.0,96326.0,0.10331637]
[1736311917111,0.22816777,96334.0,96326.0,0.10331637]
[1736311917307,0.22816777,96334.0,96326.0,0.15522537]
[1736311917915,0.22816777,96334.0,96326.0,0.19899067]
[1736311918122,0.09564376,96333.0,96327.0,0.051908]
[1736311918517,0.15827276,96332.0,96328.0,0.051908]
[1736311918718,0.3608,96330.0,96328.0,0.051908]
[1736311918910,0.3608,96330.0,96326.0,0.0437653]
[1736311919114,0.22932312,96329.0,96320.0,0.10331637]
[1736311919323,0.22932312,96329.0,96327.0,0.051908]
[1736311920021,0.09564376,96328.0,96327.0,0.051908]
[1736311920514,0.25439336,96328.0,96327.0,0.051908]
[1736311921117,0.1587496,96328.0,96327.0,0.051908]
[1736311921419,0.1597496,96328.0,96320.0,0.14534631]
[1736311921622,0.3608,96321.0,96320.0,0.04202994]
[1736311921823,0.3608,96321.0,96309.0,0.00022]
[1736311922031,0.3608,96310.0,96300.0,0.1]
[1736311922225,0.3608,96302.0,96300.0,0.20331637]
[1736311922426,0.3608,96302.0,96300.0,0.151923]
[1736311922625,0.51991239,96302.0,96301.0,0.55240997]
[1736311923525,0.52091239,96302.0,96301.0,1.06859679]
[1736311924115,0.61655615,96302.0,96301.0,1.06859679]
[1736311924419,0.61755615,96302.0,96301.0,1.06859679]
[1736311928426,0.52191239,96302.0,96301.0,1.06859679]
[1736311928818,0.0707023,96302.0,96301.0,1.06859679]
[1736311929121,0.0397023,96302.0,96301.0,1.47699679]
[1736311929316,0.0397023,96302.0,96301.0,1.27359679]
[1736311929522,0.13619034,96302.0,96301.0,1.06859679]
[1736311929925,0.09626629,96315.0,96301.0,1.42939679]
[1736311930125,0.50155773,96330.0,96314.0,0.3608]
[1736311930337,0.00215774,96330.0,96329.0,0.051908]
[1736311930628,0.00155773,96330.0,96329.0,0.56809482]
[1736311930820,0.15783964,96330.0,96329.0,0.56809482]
[1736311931022,0.18504693,96330.0,96329.0,0.56809482]
[1736311931219,0.1834892,96330.0,96329.0,0.56809482]
[1736311931523,0.1834892,96330.0,96329.0,0.51618682]
[1736311932019,0.1844892,96330.0,96329.0,0.51618682]
[1736311933824,0.1854892,96330.0,96329.0,0.51718682]
[1736311934229,0.28114032,96330.0,96329.0,0.18678682]
[1736311934630,0.78114032,96330.0,96329.0,0.18678682]
[1736311935027,0.28114032,96330.0,96329.0,0.18678682]
[1736311935426,0.5,96323.0,96317.0,0.04323047]
[1736311935628,0.5,96323.0,96309.0,0.051918]
[1736311935629,0.3608,96318.0,96309.0,0.051918]
[1736311935824,0.3608,96310.0,96301.0,0.60548668]
[1736311936033,0.3608,96302.0,96301.0,0.55304468]
[1736311936328,0.51596409,96302.0,96280.0,0.10331637]
[1736311936632,0.51941447,96302.0,96290.0,0.10331637]
[1736311936929,0.5,96300.0,96288.0,0.051929]
[1736311937230,0.5,96298.0,96288.0,0.051929]
[1736311937432,0.20733219,96299.0,96288.0,0.051929]
[1736311937729,0.65770344,96297.0,96290.0,0.051928]
[1736311937928,0.5,96297.0,96290.0,0.051928]
[1736311938129,0.0051758,96296.0,96290.0,0.051928]
[1736311938328,0.15996301,96296.0,96295.0,0.00255666]
[1736311939121,0.65996301,96296.0,96295.0,0.00255666]
[1736311939623,0.75661413,96296.0,96295.0,0.00255666]
[1736311940031,0.25661413,96296.0,96295.0,0.00255666]
[1736311940627,0.75761413,96296.0,96295.0,0.00255666]
[1736311940932,0.25761413,96296.0,96295.0,0.00255666]
[1736311942334,0.25761413,96296.0,96276.0,0.051936]
[1736311942533,0.3608,96283.0,96277.0,0.051935]
[1736311942925,0.21978455,96282.0,96277.0,0.051935]
[1736311943121,0.21978455,96282.0,96270.0,0.15552665]
[1736311943330,0.21978455,96282.0,96281.0,0.051933]
[1736311943922,0.00056001,96291.0,96278.0,0.3608]
[1736311944128,0.09665112,96296.0,96286.0,0.051931]
[1736311944326,0.33761479,96290.0,96287.0,0.05193]
[1736311944530,0.1808091,96290.0,96287.0,0.05193]
[1736311944927,0.15680569,96289.0,96287.0,0.05193]
[1736311945423,0.2524965,96289.0,96287.0,0.05193]
[1736311945623,0.063001,96288.0,96287.0,0.05193]
[1736311945834,0.2524965,96289.0,96287.0,0.05193]
[1736311945835,0.09569081,96289.0,96287.0,0.05193]
[1736311946030,0.11176757,96303.0,96286.0,0.3608]
[1736311946238,0.11176757,96303.0,96298.0,0.051924]
[1736311946533,0.45093863,96304.0,96298.0,0.051924]
[1736311946734,0.51582262,96299.0,96298.0,0.051924]
[1736311947131,0.15502262,96299.0,96298.0,0.051924]
[1736311947334,0.15602262,96299.0,96298.0,0.051924]
[1736311947630,0.001,96299.0,96298.0,0.051924]
[1736311947828,0.15491185,96299.0,96298.0,0.051924]
[1736311948130,0.001,96299.0,96298.0,0.052924]
[1736311948336,0.002,96299.0,96298.0,0.053924]
[1736311948639,0.15700136,96299.0,96298.0,0.053924]
[1736311949533,0.15700136,96299.0,96298.0,0.002]
[1736311950732,0.15700136,96299.0,96298.0,0.222]
[1736311951431,0.2526784,96299.0,96298.0,0.222]
[1736311957931,0.2492919,96299.0,96298.0,0.222]
[1736311959839,0.2492919,96299.0,96298.0,0.002]
[1736311960634,0.2263619,96299.0,96298.0,0.002]
[1736311962142,0.13068486,96299.0,96298.0,0.002]
[1736311964245,0.08626153,96299.0,96298.0,0.002]
[1736311966048,0.11198224,96299.0,96298.0,0.002]
[1736311966436,0.47278224,96299.0,96298.0,0.002]
[1736311966744,0.47278224,96299.0,96289.0,0.05250468]
[1736311966950,0.3608,96291.0,96287.0,0.4664]
[1736311967135,0.3608,96291.0,96287.0,0.46588]
[1736311967446,0.16453644,96290.0,96287.0,0.51688736]
[1736311967636,0.16453644,96290.0,96287.0,0.05100736]
[1736311967945,0.16453644,96290.0,96280.0,0.10363696]
[1736311968134,0.16453644,96290.0,96289.0,0.001]
[1736311968747,0.16453644,96290.0,96287.0,0.001]
[1736311968936,0.16553644,96290.0,96287.0,0.002]
[1736311969137,0.26123379,96290.0,96287.0,0.002]
[1736311969837,0.2169,96289.0,96287.0,0.002]
[1736311970137,0.31259735,96289.0,96287.0,0.002]
[1736311970337,0.18178746,96288.0,96287.0,0.001]
[1736311971047,0.27748481,96288.0,96282.0,0.051932]
[1736311971541,0.2072,96287.0,96282.0,0.051932]
[1736311971948,0.16774382,96286.0,96282.0,0.051932]
[1736311972249,0.16774382,96286.0,96280.0,0.05148567]
[1736311972250,0.3608,96283.0,96280.0,0.05148567]
[1736311972547,0.3608,96283.0,96267.0,0.051941]
[1736311972745,0.3608,96269.0,96267.0,0.051941]
[1736311972944,0.2143,96268.0,96267.0,0.051941]
[1736311973145,0.3933356,96268.0,96267.0,0.051941]
[1736311973646,0.48903295,96268.0,96267.0,0.10346391]
[1736311973943,0.48903295,96268.0,96267.0,0.10446391]
[1736311974449,0.49003295,96268.0,96267.0,0.10446391]
[1736311975545,0.49103295,96268.0,96267.0,0.10546391]
[1736311975945,0.21380667,96268.0,96267.0,0.10446391]
[1736311976245,0.11176757,96286.0,96281.0,0.051933]
[1736311976643,0.20097595,96282.0,96281.0,0.051933]
[1736311977043,0.0459987,96282.0,96281.0,0.051933]
[1736311977348,0.20097595,96282.0,96281.0,0.412733]
[1736311977648,0.20097595,96282.0,96281.0,0.052933]
[1736311977853,0.20097595,96282.0,96281.0,0.053933]
[1736311978542,0.20097595,96282.0,96281.0,0.052933]
[1736311978743,0.20197595,96282.0,96281.0,0.053933]
[1736311979352,0.20297595,96282.0,96281.0,0.01]
[1736311979854,0.20197595,96282.0,96281.0,0.001]
[1736311980148,0.20197595,96282.0,96281.0,0.05190995]
[1736311980453,0.20197595,96282.0,96281.0,0.001]
[1736311980646,0.20297595,96282.0,96281.0,0.01]
[1736311980845,0.20297595,96282.0,96281.0,0.061933]
[1736311981452,0.22078964,96282.0,96281.0,0.061933]
[1736311981954,0.12509219,96282.0,96281.0,0.061933]
[1736311982556,0.12509219,96282.0,96281.0,0.01]
[1736311983759,0.12509219,96282.0,96281.0,0.061933]
[1736311985354,0.12509219,96282.0,96281.0,0.01]
[1736311986541,0.12509219,96282.0,96276.0,0.04410262]
[1736311986742,0.12509219,96282.0,96260.0,0.10363696]
[1736311986743,0.48589219,96282.0,96260.0,0.10363696]
[1736311986951,0.3608,96269.0,96267.0,0.051941]
[1736311987255,0.00258961,96268.0,96263.0,0.3608]
[1736311987453,0.1577367,96268.0,96267.0,0.051941]
[1736311987653,0.00258961,96268.0,96267.0,0.051941]
[1736311987953,0.002,96282.0,96279.0,0.051934]
[1736311988153,0.002,96282.0,96276.0,0.3608]
[1736311988347,0.15612861,96281.0,96280.0,0.051934]
[1736311988546,0.15412861,96281.0,96280.0,0.051934]
[1736311988748,0.13639396,96281.0,96280.0,0.051934]